bitfinex-derivatives/quotes_SOLF0:USTF0_20241226
["timestamp","ask_amount","ask_price","bid_price","bid_amount"]
[1735204289276,3.86,190.21,190.15,2.6318]
[1735204289972,3.86,190.21,190.1,14.78265895]
[1735204290973,3.86,190.21,190.12,2.6323]
[1735204291276,3.86,190.21,190.1,14.78265895]
[1735204291277,0.88063308,190.2,190.1,14.78265895]
[1735204291477,0.88063308,190.2,190.1,17.41515895]
[1735204292269,0.88063308,190.2,190.11,2.6325]
[1735204292477,0.88063308,190.2,190.1,14.78265895]
[1735204292674,3.86,190.21,190.1,14.78265895]
[1735204294069,3.86,190.21,190.14,2.632]
[1735204295478,3.86,190.21,190.15,2.6319]
[1735204296772,3.86,190.21,190.1,14.78265895]
[1735204296773,16.46525895,190.24,190.1,14.78265895]
[1735204296973,4.7405848,190.23,190.1,14.78265895]
[1735204297171,0.8805848,190.22,190.1,14.78265895]
[1735204297777,3.86,190.23,190.12,2.6322]
[1735204298178,3.86,190.23,190.1,14.78265895]
[1735204298381,0.88064266,190.22,190.1,14.78265895]
[1735204298582,3.86,190.23,190.1,14.78265895]
[1735204298782,0.88064266,190.22,190.1,14.78265895]
[1735204299572,0.88064266,190.22,190.13,2.6322]
[1735204299784,0.88064266,190.22,190.1,14.78265895]
[1735204300279,13.25835895,190.21,190.09,2.6326]
[1735204300479,0.88064266,190.2,190.09,13.25835895]
[1735204300780,13.25835895,190.18,190.06,13.25835895]
[1735204301082,3.86,190.17,190.09,2.6326]
[1735204301678,3.86,190.17,190.1,2.6326]
[1735204301875,3.86,190.2,190.12,13.25835895]
[1735204302081,3.86,190.22,190.12,13.25835895]
[1735204302578,0.88063152,190.21,190.12,13.25835895]
[1735204302884,17.11835895,190.22,190.12,13.25835895]
[1735204303079,17.11835895,190.22,190.05,1.5373]
[1735204303080,0.8806178,190.21,190.09,13.25835895]
[1735204304180,0.8806178,190.21,190.12,2.6323]
[1735204304880,0.88072995,190.2,190.12,2.6323]
[1735204305185,0.88072995,190.19,190.12,2.6323]
[1735204305387,17.11835895,190.22,190.12,2.6323]
[1735204305687,0.88072971,190.21,190.12,2.6323]
[1735204306487,0.88072971,190.21,190.09,13.25835895]
[1735204306689,0.88072971,190.21,190.11,2.6325]
[1735204308892,0.88072971,190.21,190.09,13.25835895]
[1735204309589,0.88072971,190.21,190.11,2.6325]
[1735204310783,13.25835895,190.19,190.05,1.5373]
[1735204310988,13.25835895,190.16,190.04,39.08459219]
[1735204311291,6.34103561,190.15,190.04,52.34295114]
[1735204311490,5.4601,190.15,190.07,13.25835895]
[1735204311785,5.4601,190.15,190.09,2.6326]
[1735204311987,3.86,190.15,190.09,2.6326]
[1735204313292,3.86,190.15,190.07,15.89135895]
[1735204314293,3.86,190.15,190.07,2.633]
[1735204314487,3.86,190.15,190.06,2.6332]
[1735204315594,13.25835895,190.13,190.02,2.6336]
[1735204315789,1.5501,190.12,190.02,2.6336]
[1735204316095,1.5501,190.12,189.99,4.2093]
[1735204316096,13.25835895,190.1,189.99,4.2093]
[1735204316400,3.86,190.09,189.99,1.5753]
[1735204316583,3.86,190.09,189.96,13.25835895]
[1735204317497,3.86,190.09,189.98,3.65713947]
[1735204318696,3.86,190.08,189.98,3.65713947]
[1735204319899,3.86,190.08,189.99,2.6341]
[1735204320095,3.86,190.08,189.99,13.25835895]
[1735204320495,3.86,190.08,190.01,2.6339]
[1735204321004,5.4101,190.12,190.05,13.25835895]
[1735204321300,3.86,190.12,190.05,13.25835895]
[1735204322198,14.84845895,190.17,190.1,2.6326]
[1735204322401,3.86,190.16,190.05,13.25835895]
[1735204323501,3.86,190.16,190.1,2.6326]
[1735204323801,3.86,190.16,190.05,13.25835895]
[1735204324098,3.86,190.16,190.03,3.86]
[1735204324295,3.86,190.16,190.07,2.633]
[1735204324493,22.3317952,190.23,190.09,13.25835895]
[1735204324494,11.8839718,190.22,190.09,13.25835895]
[1735204324696,4.74083652,190.21,190.09,13.25835895]
[1735204324997,0.88083652,190.2,190.13,2.6322]
[1735204326100,0.88072701,190.19,190.12,2.6323]
[1735204326303,3.86,190.21,190.12,2.6323]
[1735204326502,0.88072738,190.2,190.12,2.6323]
[1735204326704,14.13908633,190.2,190.1,2.6325]
[1735204326899,0.880785,190.19,190.1,2.6325]
[1735204327299,0.880785,190.19,190.11,2.6325]
[1735204327603,3.86,190.2,190.09,13.25835895]
[1735204328004,3.86,190.2,190.13,2.6321]
[1735204329501,14.89755895,190.23,190.13,2.6321]
[1735204329798,4.74072263,190.22,190.13,2.6321]
[1735204329998,4.74072263,190.21,190.13,2.6321]
[1735204330199,0.88072263,190.2,190.13,2.6321]
[1735204331110,0.88072263,190.2,190.09,13.25835895]
[1735204331413,4.74072263,190.2,190.14,2.632]
[1735204331609,3.86,190.2,190.14,2.632]
[1735204332111,3.86,190.2,190.16,2.6317]
[1735204332515,3.86,190.2,190.15,2.6319]
[1735204333408,13.25835895,190.16,190.01,41.56645073]
[1735204333606,0.88091388,190.15,190.03,13.25835895]
[1735204333811,3.84,190.14,190.03,13.25835895]
[1735204334213,3.84,190.14,190.07,2.633]
[1735204335812,3.84,190.14,190.08,2.6329]
[1735204336007,3.84,190.14,190.06,13.25835895]
[1735204336408,3.84,190.14,190.07,2.633]
[1735204336603,3.84,190.14,190.03,13.25835895]
[1735204337009,0.88098336,190.13,190.05,2.6333]
[1735204337406,0.88098336,190.13,190.03,13.25835895]
[1735204337605,3.84,190.14,190.03,13.25835895]
[1735204337811,3.86,190.14,190.03,13.25835895]
[1735204338007,3.86,190.14,190.06,13.25835895]
[1735204338616,3.86,190.14,190.07,2.633]
[1735204342218,3.86,190.14,190.08,2.6329]
[1735204343924,14.4059187,190.18,190.09,13.25835895]
[1735204344114,10.45562166,190.18,190.15,2.6319]
[1735204344316,3.86,190.2,190.15,2.6319]
[1735204344926,3.86,190.2,190.12,13.25835895]
[1735204345224,22.42882708,190.23,190.12,13.25835895]
[1735204345526,0.88061291,190.22,190.12,13.25835895]
[1735204346126,0.88061291,190.21,190.12,13.25835895]
[1735204346523,0.88061291,190.21,190.15,2.6319]
[1735204347023,0.88061291,190.21,190.12,13.25835895]
[1735204347230,0.88061291,190.21,190.14,2.632]
[1735204347429,0.88061291,190.21,190.12,13.25835895]
[1735204347720,0.88061291,190.21,190.13,2.6322]
[1735204347927,0.88061291,190.21,190.12,13.25835895]
[1735204348628,0.88061291,190.21,190.13,2.6322]
[1735204351432,3.86,190.22,190.13,2.6322]
[1735204351632,0.88037352,190.21,190.13,2.6322]
[1735204353030,0.88037352,190.21,190.12,15.89065895]
[1735204354329,0.88068568,190.2,190.12,15.89065895]
[1735204354528,3.86,190.22,190.12,15.89065895]
[1735204354728,0.88068638,190.21,190.12,15.89065895]
[1735204356034,12.80569789,190.21,190.12,15.89065895]
[1735204356232,0.88068638,190.2,190.12,15.89065895]
[1735204358235,8.50747567,190.19,190.13,8.50747567]
[1735204363937,8.50747567,190.19,190.05,3.84]
[1735204364237,8.50747567,190.17,190.1,8.50747567]
[1735204365930,8.50747567,190.15,190.1,8.50747567]
[1735204368236,3.94947947,190.17,190.12,8.50747567]
[1735204368433,10.50320717,190.18,190.14,8.50747567]
[1735204368633,58.01322064,190.19,190.01,2.74793096]
[1735204368634,58.01322064,190.19,190.06,3.84]
[1735204368832,11.93157154,190.18,190.14,8.50747567]
[1735204369234,22.44213154,190.18,190.14,8.50747567]
[1735204369639,10.51056,190.18,190.14,8.50747567]
[1735204369840,10.51056,190.18,190.16,8.50747567]
[1735204370431,22.4425539,190.2,190.16,8.50747567]
[1735204372628,10.51056,190.2,190.16,8.50747567]
[1735204372835,11.9319939,190.21,190.16,8.50747567]
[1735204373140,0.87980039,190.2,190.16,8.50747567]
[1735204373330,34.79002957,190.22,190.16,8.50747567]
[1735204373530,11.9319939,190.21,190.16,8.50747567]
[1735204373735,0.87992085,190.2,190.16,8.50747567]
[1735204375039,11.93563388,190.21,190.16,8.50747567]
[1735204375940,0.87956743,190.2,190.16,8.50747567]
[1735204376330,11.93563388,190.21,190.16,8.50747567]
[1735204376537,0.87956677,190.2,190.16,8.50747567]
[1735204376736,9.38704244,190.2,190.12,2.6322]
[1735204376937,8.50747567,190.2,190.13,8.50747567]
[1735204377534,8.50747567,190.18,190.08,1.5284]
[1735204377743,8.50747567,190.18,190.11,8.50747567]
[1735204380039,19.02203108,190.18,190.11,8.50747567]
[1735204380240,10.51455541,190.18,190.11,8.50747567]
[1735204381736,66.52069631,190.19,190.11,8.50747567]
[1735204382239,3.84,190.18,190.11,8.50747567]
[1735204382942,14.37327088,190.18,190.11,8.50747567]
[1735204383139,14.37327088,190.18,190.13,8.50747567]
[1735204383643,8.50747567,190.17,190.08,1.5284]
[1735204383841,8.50747567,190.17,190.06,8.50747567]
[1735204383842,8.50747567,190.13,190.06,8.50747567]
[1735204384442,8.50747567,190.13,190.06,11.14057567]
[1735204384642,8.50747567,190.1,190.01,2.69423096]
[1735204384842,8.50747567,190.08,190.0,11.60580344]
[1735204385041,8.50747567,190.08,190.01,8.50747567]
[1735204389040,8.50747567,190.06,190.01,8.50747567]
[1735204389243,12.32747567,190.06,189.99,8.50747567]
[1735204389443,12.32747567,190.06,189.96,4.1594]
[1735204389644,12.32747567,190.06,189.99,8.50747567]
[1735204389844,10.53327088,190.09,189.99,8.50747567]
[1735204390044,8.50747567,190.07,190.01,8.50747567]
[1735204390644,8.50747567,190.07,190.02,2.6337]
[1735204390848,8.50747567,190.07,190.01,8.50747567]
[1735204391049,3.82,190.08,190.01,8.50747567]
[1735204391749,3.82,190.08,190.01,11.14137567]
[1735204392145,3.82,190.08,189.96,1.525]
[1735204392450,3.82,190.08,190.01,8.50747567]
[1735204393650,8.50747567,190.07,190.01,8.50747567]
[1735204394043,3.82,190.08,190.03,8.50747567]
[1735204394250,3.82,190.08,190.03,11.14107567]
[1735204394847,3.82,190.08,190.03,8.50747567]
[1735204396852,8.50747567,190.06,189.99,8.50747567]
[1735204397147,12.32747567,190.08,189.96,1.525]
[1735204397351,12.32747567,190.08,190.03,8.50747567]
[1735204398153,12.32747567,190.08,190.03,11.14107567]
[1735204398547,12.32747567,190.08,190.03,8.50747567]
[1735204398949,12.32747567,190.08,190.02,2.6337]
[1735204398950,12.32747567,190.08,189.96,1.525]
[1735204399154,12.32747567,190.08,190.0,8.50747567]
[1735204399753,3.82,190.08,190.02,8.50747567]
[1735204401250,3.82,190.08,190.02,11.14117567]
[1735204401951,12.32747567,190.08,190.02,11.14117567]
[1735204402456,12.32747567,190.08,189.96,1.525]
[1735204402656,12.32747567,190.08,190.01,8.50747567]
[1735204403555,12.32747567,190.08,190.01,11.14137567]
[1735204403956,12.32747567,190.08,189.96,1.525]
[1735204404164,12.32747567,190.08,190.0,11.14147567]
[1735204404455,12.32747567,190.08,190.0,8.50747567]
[1735204405157,8.50747567,190.06,189.94,1.533]
[1735204405455,8.50747567,190.06,189.9,1.5696]
[1735204405654,8.50747567,190.06,189.98,8.50747567]
[1735204406754,8.50747567,190.06,189.98,11.14177567]
[1735204407257,8.50747567,190.06,190.0,8.50747567]
[1735204409060,8.50747567,190.06,189.95,2.6347]
[1735204409252,8.50747567,190.04,189.95,2.6347]
[1735204409455,8.50747567,190.02,189.95,8.50747567]
[1735204409751,3.84,190.01,189.95,8.50747567]
[1735204410151,3.84,190.01,189.99,8.50747567]
[1735204410658,3.84,190.01,189.99,11.14157567]
[1735204411057,3.84,190.01,189.99,8.50747567]
[1735204412458,1.5657,190.07,189.99,8.50747567]
[1735204412662,3.84,190.07,190.02,8.50747567]
[1735204413164,3.84,190.07,189.93,3.84]
[1735204413165,1.6107,190.1,190.06,8.50747567]
[1735204413364,58.01322064,190.13,190.08,8.50747567]
[1735204413561,3.84,190.14,189.99,3.84]
[1735204413765,0.87937208,190.13,190.1,8.50747567]
[1735204413968,1.5551,190.15,190.1,8.50747567]
[1735204414166,1.5551,190.15,190.12,8.50747567]
[1735204414368,58.01322064,190.16,190.14,8.50747567]
[1735204414566,61.85322064,190.18,190.14,8.50747567]
[1735204414762,58.01322064,190.18,190.14,8.50747567]
[1735204415061,58.01322064,190.18,190.13,2.6322]
[1735204415267,58.01322064,190.18,190.16,8.50747567]
[1735204415663,90.42719752,190.2,190.16,8.50747567]
[1735204415664,3.84,190.2,190.16,8.50747567]
[1735204416169,3.84,190.2,190.12,15.92311263]
[1735204416769,3.84,190.2,190.09,13.29081263]
[1735204416969,13.29081263,190.18,190.06,13.29081263]
[1735204417164,0.87898953,190.17,190.06,13.29081263]
[1735204417367,2.50208953,190.17,190.06,13.29081263]
[1735204417566,0.87898953,190.16,190.06,15.92401263]
[1735204417763,0.87898953,190.16,190.06,13.29081263]
[1735204418064,1.6492,190.15,190.06,13.29081263]
[1735204418363,3.84,190.14,190.06,13.29081263]
[1735204419161,3.84,190.14,190.06,15.92391263]
[1735204419365,3.84,190.14,190.06,13.29081263]
[1735204419871,3.84,190.14,190.06,15.92391263]
[1735204420169,1.6492,190.15,190.06,13.29081263]
[1735204420567,1.6492,190.15,190.09,2.6327]
[1735204420769,1.6492,190.15,190.06,13.29081263]
[1735204421167,1.6492,190.15,190.07,2.6329]
[1735204421766,1.6492,190.15,190.06,13.29081263]
[1735204421767,1.6492,190.15,190.08,2.6328]
[1735204422469,1.6492,190.15,190.09,2.6328]
[1735204422673,3.2374,190.17,190.09,13.29081263]
[1735204422870,1.6231,190.17,190.09,13.29081263]
[1735204423074,3.82,190.19,190.12,13.29081263]
[1735204423274,1.5417,190.21,190.12,13.29081263]
[1735204423574,0.87860363,190.2,190.12,13.29081263]
[1735204423770,0.87860363,190.2,190.13,2.6322]
[1735204424075,1.5417,190.21,190.12,13.29081263]
[1735204424275,4.69850627,190.2,190.1,2.6325]
[1735204424579,0.87850627,190.19,190.09,13.29081263]
[1735204424775,0.87850627,190.19,190.09,15.92351263]
[1735204425069,13.29081263,190.18,190.06,13.29081263]
[1735204425267,0.87850627,190.17,190.06,13.29081263]
[1735204425466,2.46710627,190.17,190.06,13.29081263]
[1735204425674,0.87850627,190.16,190.06,13.29081263]
[1735204425874,0.87850627,190.16,190.06,15.92381263]
[1735204426475,0.87850627,190.16,190.06,13.29081263]
[1735204427177,0.87850627,190.16,190.06,15.92401263]
[1735204427578,13.29081263,190.15,190.03,13.29081263]
[1735204427875,4.69952581,190.14,190.03,15.92441263]
[1735204428067,0.87945551,190.13,190.03,15.92441263]
[1735204428270,13.29081263,190.12,190.01,4.1825]
[1735204428477,0.87943493,190.11,190.01,2.6338]
[1735204429577,18.81685615,190.12,190.02,2.6337]
[1735204429773,0.87937085,190.11,190.0,13.29081263]
[1735204429970,5.3964,190.12,190.03,13.29081263]
[1735204430379,3.82,190.12,190.06,2.6331]
[1735204432080,3.82,190.14,190.06,2.6331]
[1735204432883,3.82,190.14,190.03,13.29081263]
[1735204433080,3.82,190.14,190.07,2.633]
[1735204434683,3.82,190.14,190.06,13.29081263]
[1735204435277,3.82,190.14,190.1,2.6326]
[1735204435679,3.82,190.14,190.12,2.6323]
[1735204436174,1.5886,190.17,190.12,2.6323]
[1735204436880,1.6319,190.2,190.12,2.6323]
[1735204437084,0.88056711,190.19,190.12,2.6323]
[1735204437582,0.88056711,190.19,190.1,2.6325]
[1735204437782,0.88056711,190.19,190.06,13.29081263]
[1735204437981,0.88050203,190.18,190.06,13.29081263]
[1735204438180,0.88050203,190.17,190.06,13.29081263]
[1735204438377,0.88050203,190.16,190.06,13.29081263]
[1735204438575,27.8391248,190.2,190.06,13.29081263]
[1735204438780,0.88043787,190.19,190.06,13.29081263]
[1735204439484,0.88043787,190.19,190.09,2.6326]
[1735204440183,0.88043787,190.19,190.1,2.6325]
[1735204440580,0.88076851,190.18,190.09,13.29081263]
[1735204440782,5.4519,190.2,190.12,2.6323]
[1735204441082,0.88070619,190.19,190.12,2.6323]
[1735204441385,5.4519,190.2,190.12,2.6323]
[1735204441683,0.88071675,190.19,190.12,2.6323]
[1735204441883,5.4519,190.2,190.12,2.6323]
[1735204442383,0.88069358,190.19,190.09,13.29081263]
[1735204442779,0.88069358,190.19,190.08,2.6328]
[1735204442979,0.88069358,190.19,190.06,13.29081263]
[1735204443278,0.88069358,190.19,190.06,15.92391263]
[1735204443279,13.29081263,190.18,190.06,15.92391263]
[1735204443484,0.88069358,190.17,190.06,15.92391263]
[1735204444074,0.88069358,190.17,190.06,13.29081263]
[1735204444280,0.88069358,190.17,190.07,2.633]
[1735204444677,13.29081263,190.15,190.05,2.6333]
[1735204444878,6.35809358,190.14,190.03,13.29081263]
[1735204445078,0.88069358,190.13,190.03,13.29081263]
[1735204445286,7.0718,190.14,190.03,15.92431263]
[1735204445486,0.88046926,190.13,190.03,15.92431263]
[1735204449093,0.88105683,190.12,190.06,2.6332]
[1735204449288,3.8,190.13,190.06,2.6332]
[1735204449588,3.8,190.13,190.03,13.29081263]
[1735204449789,3.8,190.13,190.06,13.29081263]
[1735204450492,3.8,190.13,190.08,2.6329]
[1735204450991,3.8,190.13,190.06,13.29081263]
[1735204451187,3.8,190.18,190.06,13.29081263]
[1735204451388,0.88081132,190.17,190.09,13.29081263]
[1735204451585,1.6567,190.19,190.09,13.29081263]
[1735204451783,1.6567,190.19,190.12,13.29081263]
[1735204451985,58.01322064,190.2,190.12,13.29081263]
[1735204452196,3.8,190.22,190.13,2.6321]
[1735204452382,3.8,190.22,190.12,13.29081263]
[1735204452383,0.88070437,190.21,190.12,13.29081263]
[1735204453186,0.88070437,190.21,190.09,13.29081263]
[1735204453391,2.45190437,190.21,190.09,13.29081263]
[1735204453587,0.88070437,190.2,190.1,2.6326]
[1735204454790,0.88070437,190.2,190.09,13.29081263]
[1735204455596,3.8,190.2,190.12,13.29081263]
[1735204455994,18.47926396,190.21,190.15,13.29081263]
[1735204455995,14.4478393,190.21,190.15,13.29081263]
[1735204456196,14.4478393,190.21,190.16,2.6318]
[1735204456694,10.49867286,190.21,190.16,2.6318]
[1735204456889,26.23069273,190.23,190.15,15.92271263]
[1735204457095,26.23069273,190.23,190.15,2.6319]
[1735204457296,22.43069273,190.23,190.17,13.29081263]
[1735204457496,0.88061403,190.22,190.17,13.29081263]
[1735204457992,10.49867286,190.24,190.17,13.29081263]
[1735204458195,62.363661,190.25,190.19,2.6314]
[1735204458390,62.363661,190.25,190.17,13.29081263]
[1735204458593,11.93015303,190.24,190.1,3.1544]
[1735204458791,0.88054799,190.23,190.15,2.6319]
[1735204459202,22.44048994,190.24,190.15,2.6319]
[1735204459404,0.88055324,190.23,190.16,2.6318]
[1735204459700,3.8,190.25,190.16,2.6318]
[1735204459897,0.88054943,190.24,190.16,2.6318]
[1735204461194,0.88054943,190.24,190.14,13.29081263]
[1735204461195,0.88054943,190.24,190.17,2.6316]
[1735204461902,0.88054943,190.24,190.15,2.6318]
[1735204463403,0.88054943,190.24,190.14,13.29081263]
[1735204463597,0.88054943,190.24,190.16,2.6318]
[1735204464098,0.88054943,190.24,190.17,2.6317]
[1735204464495,3.8,190.25,190.14,13.29081263]
[1735204464701,0.88054044,190.24,190.14,13.29081263]
[1735204465306,3.8,190.25,190.14,13.29081263]
[1735204465503,0.88054645,190.24,190.14,13.29081263]
[1735204465706,0.88054645,190.24,190.17,2.6317]
[1735204466105,0.88054645,190.24,190.14,13.29081263]
[1735204466310,3.8,190.25,190.14,13.29081263]
[1735204466603,0.88046546,190.24,190.18,2.6315]
[1735204466811,3.8,190.25,190.14,13.29081263]
[1735204467108,3.8,190.26,190.17,13.29081263]
[1735204467304,0.88041416,190.25,190.17,13.29081263]
[1735204467505,0.8804151,190.25,190.19,2.6314]
[1735204468306,4.6804151,190.25,190.19,2.6314]
[1735204468511,3.8,190.25,190.17,13.29081263]
[1735204468709,3.8,190.25,190.18,2.6315]
[1735204470004,0.8804216,190.24,190.17,13.29081263]
[1735204470204,0.88051771,190.23,190.18,8.50337374]
[1735204470405,12.30337374,190.25,190.18,8.50337374]
[1735204470605,0.8805176,190.24,190.18,8.50337374]
[1735204471204,8.50337374,190.23,190.1,3.1544]
[1735204471513,8.50337374,190.19,190.11,8.50337374]
[1735204471715,8.50337374,190.17,190.11,8.50337374]
[1735204472614,0.88091319,190.16,190.09,8.50337374]
[1735204472810,0.88087797,190.15,190.09,8.50337374]
[1735204473114,8.50337374,190.17,190.09,8.50337374]
[1735204473708,0.88086636,190.16,190.09,8.50337374]
[1735204473909,8.50337374,190.17,190.11,8.50337374]
[1735204474107,3.8,190.18,190.09,2.6327]
[1735204474614,0.88080343,190.17,190.09,2.6327]
[1735204475212,3.8,190.18,190.09,2.6327]
[1735204475415,0.88078803,190.17,190.09,2.6327]
[1735204475716,3.8,190.18,190.09,2.6327]
[1735204476315,0.88079374,190.17,190.08,13.29633766]
[1735204476617,0.88079374,190.17,190.08,15.92923766]
[1735204477312,0.88079374,190.17,190.08,13.29633766]
[1735204477520,3.8,190.18,190.09,2.6327]
[1735204478313,0.8807926,190.17,190.09,2.6327]
[1735204478714,0.8807926,190.17,190.08,13.29633766]
[1735204479018,3.8,190.18,190.08,15.92923766]
[1735204479218,0.88083526,190.17,190.08,15.92923766]
[1735204479419,0.88083526,190.17,190.08,13.29633766]
[1735204481920,3.8,190.18,190.08,13.29633766]
[1735204482113,0.88084032,190.17,190.08,13.29633766]
[1735204483415,0.88084032,190.17,190.09,2.6327]
[1735204484118,3.8,190.18,190.09,2.6327]
[1735204484309,0.88080397,190.17,190.09,2.6327]
[1735204488420,0.88080397,190.17,190.07,2.633]
[1735204488615,0.88080397,190.17,190.06,13.29633766]
[1735204488819,0.88080397,190.17,190.1,2.6325]
[1735204489022,3.8,190.18,190.09,13.29633766]
[1735204489720,3.8,190.18,190.1,2.6326]
[1735204490324,0.8807953,190.17,190.1,2.6326]
[1735204490524,0.8807953,190.17,190.09,13.29633766]
[1735204492328,3.8,190.18,190.09,13.29633766]
[1735204492521,0.88079548,190.17,190.07,2.633]
[1735204492831,14.17713314,190.17,190.07,2.633]
[1735204493025,0.88079548,190.16,190.07,2.633]
[1735204494029,0.88079548,190.16,190.08,13.29633766]
[1735204494327,8.50961307,190.17,190.11,8.50961307]
[1735204495533,3.8,190.18,190.11,8.50961307]
[1735204495722,12.30961307,190.18,190.11,8.50961307]
[1735204495926,8.50961307,190.16,190.09,11.14231307]
[1735204497732,8.50961307,190.16,190.09,8.50961307]
[1735204500436,8.50961307,190.16,190.04,34.89076328]
[1735204500632,8.50961307,190.12,190.05,8.50961307]
[1735204500839,8.50961307,190.08,190.04,34.89076328]
[1735204501138,12.30961307,190.08,190.04,34.89076328]
[1735204501431,8.50961307,190.06,189.97,1.6763]
[1735204501740,8.50961307,190.06,189.99,8.50961307]
[1735204502438,8.50961307,190.06,189.96,1.6603]
[1735204502634,8.50961307,190.04,189.98,8.50961307]
[1735204502835,8.50961307,190.04,189.96,8.50961307]
[1735204503042,0.88014981,190.03,189.96,8.50961307]
[1735204503234,12.30961307,190.02,189.96,8.50961307]
[1735204503735,3.8,190.02,189.98,8.50961307]
[1735204504132,3.8,190.02,189.94,34.35971543]
[1735204504338,3.8,190.02,189.96,8.50961307]
[1735204506038,8.50961307,189.99,189.94,34.35971543]
[1735204506242,8.50961307,189.97,189.94,34.35971543]
[1735204506840,8.50961307,189.99,189.94,34.35971543]
[1735204507142,10.18801307,190.01,189.95,8.50961307]
[1735204507337,3.8,190.0,189.95,8.50961307]
[1735204508141,3.8,190.0,189.94,34.35971543]
[1735204508332,8.50961307,189.99,189.94,34.35971543]
[1735204509634,8.50961307,189.97,189.94,34.35971543]
[1735204511235,3.8,190.0,189.89,1.5225]
[1735204511443,8.50961307,189.96,189.89,10.03211307]
[1735204512741,3.8,190.0,189.91,8.50961307]
[1735204513046,8.50961307,189.99,189.93,8.50961307]
[1735204513345,3.2017,190.01,189.93,8.50961307]
[1735204513547,12.30961307,190.0,189.93,8.50961307]
[1735204515640,12.30961307,190.0,189.92,8.50961307]
[1735204515838,8.50961307,189.98,189.92,8.50961307]
[1735204516650,8.50961307,189.98,189.9,8.50961307]
[1735204517037,8.50961307,189.96,189.9,8.50961307]
[1735204517446,8.50961307,189.96,189.85,2.6359]
[1735204517650,8.50961307,189.94,189.87,8.50961307]
[1735204517849,12.30961307,189.94,189.87,8.50961307]
[1735204520944,3.8,189.94,189.84,8.50961307]
[1735204521144,8.50961307,189.93,189.86,8.50961307]
[1735204521848,8.50961307,189.93,189.85,2.6359]
[1735204522043,8.50961307,189.93,189.85,8.50961307]
[1735204522345,8.50961307,189.93,189.82,39.04077147]
[1735204522346,8.50961307,189.89,189.82,39.04077147]
[1735204522547,8.50961307,189.89,189.82,47.55038454]
[1735204522948,8.50961307,189.89,189.82,50.18678454]
[1735204523147,8.50961307,189.89,189.82,47.55038454]
[1735204523344,1.545,189.92,189.72,1.6696]
[1735204523345,8.50961307,189.85,189.72,1.6696]
[1735204523549,8.50961307,189.83,189.77,8.50961307]
[1735204524146,12.00928216,189.86,189.76,2.6372]
[1735204524345,12.00928216,189.86,189.78,2.6369]
[1735204525342,12.00928216,189.86,189.76,2.6372]
[1735204525547,3.8,189.85,189.76,2.6372]
[1735204526949,12.00928216,189.86,189.78,2.637]
[1735204527247,3.8,189.87,189.77,12.00928216]
[1735204527749,3.8,189.87,189.8,2.6367]
[1735204528548,3.8,189.87,189.77,12.00928216]
[1735204529250,3.8,189.87,189.78,2.637]
[1735204529450,3.8,189.87,189.77,12.00928216]
[1735204529847,3.8,189.86,189.77,12.00928216]
[1735204530345,3.8,189.86,189.76,2.6373]
[1735204532755,12.00928216,189.88,189.77,12.00928216]
[1735204533047,3.8,189.87,189.8,2.6367]
[1735204533446,3.8,189.87,189.75,12.00928216]
[1735204534050,3.8,189.86,189.75,12.00928216]
[1735204535053,3.8,189.86,189.78,2.637]
[1735204537256,3.8,189.86,189.77,2.6371]
[1735204537455,15.18808216,189.85,189.75,12.00928216]
[1735204537861,15.18808216,189.85,189.75,2.6373]
[1735204538361,0.88139282,189.84,189.75,2.6373]
[1735204538663,15.18808216,189.85,189.75,2.6373]
[1735204538864,0.88139786,189.84,189.75,2.6373]
[1735204539161,15.18808216,189.85,189.75,2.6373]
[1735204540159,0.8812971,189.84,189.75,2.6373]
[1735204540559,15.18808216,189.85,189.75,2.6373]
[1735204540763,0.88093401,189.84,189.75,2.6373]
[1735204541464,15.18808216,189.85,189.75,2.6373]
[1735204543673,15.18808216,189.85,189.73,1.6445]
[1735204543879,0.88088214,189.84,189.74,2.6376]
[1735204544069,0.88088214,189.84,189.72,13.67888216]
[1735204544264,4.7764,189.85,189.79,2.6368]
[1735204544469,3.78,189.84,189.79,2.6368]
[1735204545071,3.78,189.84,189.78,2.637]
[1735204546270,3.1788,189.85,189.79,7.6840413]
[1735204546469,7.6840413,189.9,189.83,7.6840413]
[1735204546668,5.3464,189.91,189.85,10.3200413]